bitfinex/quotes_ETHUSD_20240713
["timestamp","ask_amount","ask_price","bid_price","bid_amount"]
[1720910754360,2.4479,3191.6,3188.9,4.104]
[1720910754574,0.55,3191.5,3188.9,4.104]
[1720910754728,0.59979,3191.4,3189.2,1.5]
[1720910754929,0.55,3191.3,3189.2,1.5]
[1720910755957,0.55,3191.3,3188.9,4.54583]
[1720910756265,2.4479,3191.2,3188.9,4.104]
[1720910756567,0.55,3191.1,3188.9,4.104]
[1720910756869,0.55,3191.1,3189.0,0.0627061]
[1720910757172,3.55,3191.1,3188.9,2.604]
[1720910757367,0.359979,3191.0,3188.9,1.5]
[1720910757537,0.55,3190.9,3188.9,1.5]
[1720910759095,0.55,3190.9,3189.2,1.5]
[1720910759241,0.55,3190.9,3189.3,0.06269982]
[1720910759643,0.359979,3191.0,3189.6,1.5]
[1720910760084,0.359979,3191.0,3189.8,1.5]
[1720910761085,0.359979,3191.0,3189.2,1.5]
[1720910761299,0.359979,3191.0,3189.9,1.5]
[1720910761591,0.359979,3191.0,3189.1,2.604]
[1720910761592,0.359979,3191.0,3189.3,1.5]
[1720910761795,0.32803636,3190.9,3189.3,1.5]
[1720910762094,0.32803636,3190.9,3189.0,1.5]
[1720910762307,0.32803636,3190.9,3189.0,1.45]
[1720910762614,0.32803636,3190.9,3189.2,1.45]
[1720910763198,0.32803636,3190.9,3189.6,1.45]
[1720910763507,0.32803636,3190.9,3189.3,1.45]
[1720910763655,0.32803636,3190.9,3189.1,1.45]
[1720910763861,0.55,3190.8,3188.9,1.45]
[1720910764099,0.55,3190.8,3188.6,2.2899]
[1720910764306,2.328,3190.7,3188.3,1.45]
[1720910764511,2.328,3190.7,3188.1,1.5]
[1720910764512,10.63350902,3190.6,3188.4,1.45]
[1720910765004,3.0,3190.5,3188.7,1.45]
[1720910765560,3.4578,3190.6,3188.7,1.45]
[1720910765788,0.4578,3190.6,3188.9,1.45]
[1720910766014,3.4578,3190.6,3188.9,1.45]
[1720910766181,0.57858,3190.5,3189.2,1.45]
[1720910766398,3.0,3190.6,3189.2,1.45]
[1720910766899,2.328,3190.7,3189.4,1.45]
[1720910767111,0.32803636,3190.9,3189.9,1.45]
[1720910767316,0.32803636,3190.9,3190.0,0.06268437]
[1720910767532,0.32803636,3190.9,3190.3,1.45]
[1720910768835,0.32803636,3190.9,3190.7,1.45]
[1720910768975,0.32803636,3190.9,3190.3,1.45]
[1720910769173,2.328,3192.0,3190.3,1.45]
[1720910769527,0.32803733,3191.3,3190.3,1.45]
[1720910769726,0.2328,3191.9,3190.5,1.45]
[1720910769875,0.32805887,3191.2,3190.5,1.45]
[1720910770083,0.2328,3191.9,3190.7,1.45]
[1720910770277,0.2328,3191.9,3190.5,1.45]
[1720910770587,0.25608,3191.8,3190.8,1.45]
[1720910770951,0.58414236,3191.8,3190.4,1.45]
[1720910771083,0.58414236,3191.8,3190.2,1.45]
[1720910771479,0.58414236,3191.8,3190.0,1.45]
[1720910771894,0.58414236,3191.8,3190.3,1.45]
[1720910772219,0.35841424,3191.7,3190.3,1.45]
[1720910772928,0.35841424,3191.7,3190.5,1.45]
[1720910773082,0.35841424,3191.7,3190.8,1.45]
[1720910773284,0.58414236,3191.8,3190.8,1.45]
[1720910773586,0.58414236,3191.8,3190.6,1.45]
[1720910773805,0.58414236,3191.8,3190.8,1.45]
[1720910774224,0.32806236,3191.8,3191.0,1.45]
[1720910774816,0.32806236,3191.8,3191.2,1.45]
[1720910775943,0.32806236,3191.8,3191.7,1.45]
[1720910776088,0.32806236,3191.8,3191.7,3.64318]
[1720910776280,0.32806236,3191.8,3191.7,5.14318]
[1720910776480,2.328,3193.9,3193.0,1.45]
[1720910776728,2.328,3195.3,3193.1,0.06262546]
[1720910776889,0.32793853,3194.3,3193.0,1.45]
[1720910777223,2.328,3195.3,3193.0,1.45]
[1720910777532,0.32792576,3194.3,3192.6,1.45]
[1720910777837,2.4023,3194.2,3192.4,1.45]
[1720910778038,2.73025862,3194.2,3192.5,1.5]
[1720910778182,2.73025862,3194.2,3192.2,1.45]
[1720910778538,2.73025862,3194.2,3191.9,2.4859]
[1720910778539,2.73025862,3194.2,3192.4,2.95]
[1720910778715,2.73025862,3194.2,3192.4,1.5]
[1720910778917,0.27302586,3194.1,3192.5,1.45]
[1720910779438,0.27302586,3194.1,3192.7,1.45]
[1720910779588,0.27302586,3194.1,3192.8,1.45]
[1720910779792,0.27302586,3194.1,3193.0,1.45]
[1720910779989,0.27302586,3194.1,3192.8,1.45]
[1720910780236,2.73025862,3194.2,3192.8,1.45]
[1720910780237,0.30032845,3194.0,3192.8,1.45]
[1720910780394,0.30032845,3194.0,3192.3,2.604]
[1720910780395,0.30032845,3194.0,3192.7,1.5]
[1720910780596,0.30032845,3194.0,3192.6,1.45]
[1720910780791,0.30032845,3194.0,3192.5,1.5]
[1720910781026,0.30032845,3194.0,3192.6,1.45]
[1720910781238,0.30032845,3194.0,3193.1,1.45]
[1720910782332,0.32795862,3194.2,3193.4,1.45]
[1720910783515,0.32795862,3194.2,3193.2,1.45]
[1720910783727,0.32795862,3194.2,3193.0,2.4859]
[1720910783728,0.32795862,3194.2,3193.0,1.45]
[1720910783929,0.32795862,3194.2,3192.8,2.95]
[1720910784108,0.32795862,3194.2,3193.2,1.45]
[1720910785120,0.32795862,3194.2,3193.4,1.45]
[1720910786530,0.32795862,3194.2,3194.1,1.45]
[1720910786756,0.32795862,3194.2,3194.1,4.054]
[1720910787051,0.32795862,3194.2,3194.1,5.554]
[1720910787354,0.1155608,3195.9,3194.1,1.45]
[1720910787557,0.32794924,3194.6,3194.2,1.45]
[1720910787853,0.1155608,3195.9,3193.8,1.45]
[1720910788062,0.1155608,3195.9,3193.3,0.3143]
[1720910788063,0.32789519,3194.9,3193.5,1.45]
[1720910788228,2.4023,3195.1,3193.9,1.45]
[1720910788431,0.3279101,3194.8,3193.9,1.45]
[1720910788631,0.3279101,3194.8,3194.1,1.45]
[1720910788840,0.3279101,3194.8,3194.4,1.45]
[1720910789227,0.3279101,3194.8,3194.6,1.45]
[1720910790659,0.1155608,3195.9,3195.2,1.45]
[1720910790960,0.1155608,3195.9,3195.4,1.45]
[1720910791176,0.1155608,3195.9,3195.5,0.06257851]
[1720910791397,0.1155608,3195.9,3195.8,1.45]
[1720910792843,0.1155608,3195.9,3195.4,1.45]
[1720910793037,0.1155608,3195.9,3195.2,1.45]
[1720910794343,0.1155608,3195.9,3195.4,1.45]
[1720910794544,0.1155608,3195.9,3195.2,1.45]
[1720910794780,0.1155608,3195.9,3195.0,1.5]
[1720910794781,0.1155608,3195.9,3194.7,2.95]
[1720910794979,0.1155608,3195.9,3194.3,1.45]
[1720910795296,0.1155608,3195.9,3194.4,1.45]
[1720910795595,0.1155608,3195.9,3193.6,2.4859]
[1720910795596,0.1155608,3195.9,3193.9,1.45]
[1720910795777,2.4023,3195.8,3194.3,1.45]
[1720910796080,0.25178608,3195.7,3194.3,1.45]
[1720910796959,0.25178608,3195.7,3194.5,1.45]
[1720910797148,0.25178608,3195.7,3194.7,1.45]
[1720910798447,0.1155608,3195.9,3194.9,1.45]
[1720910798646,0.1155608,3195.9,3195.1,1.45]
[1720910798857,0.1155608,3195.9,3195.3,1.45]
[1720910800503,0.1155608,3195.9,3195.8,1.45]
[1720910800802,2.4618,3197.0,3195.8,1.45]
[1720910801165,2.4618,3197.0,3196.0,1.45]
[1720910801781,2.4618,3197.0,3195.8,1.45]
[1720910801985,2.4618,3197.0,3196.0,1.45]
[1720910802463,2.4618,3197.0,3195.8,1.45]
[1720910802669,2.4618,3197.0,3196.0,1.45]
[1720910803506,2.4618,3197.0,3196.1,0.06256649]
[1720910803676,2.4618,3197.6,3196.0,1.45]
[1720910803877,3.0,3197.5,3195.7,1.45]
[1720910804099,3.0,3197.5,3195.5,1.45]
[1720910804323,3.0,3197.5,3195.7,1.45]
[1720910804470,3.0,3197.5,3195.5,1.45]
[1720910804666,3.0,3197.5,3195.3,1.45]
[1720910805183,2.4618,3196.6,3195.1,1.45]
[1720910805381,0.27896589,3196.5,3195.1,1.45]
[1720910805904,0.27896589,3196.5,3195.0,1.5]
[1720910806802,0.27896589,3196.5,3194.5,1.45]
[1720910807018,0.55,3196.4,3194.3,1.45]
[1720910807162,0.38289659,3196.3,3194.3,1.45]
[1720910807364,0.38289659,3196.3,3194.1,1.45]
[1720910807365,0.55,3196.2,3194.1,1.45]
[1720910807577,0.55,3196.2,3193.9,1.45]
[1720910807578,2.4618,3196.1,3193.9,1.45]
[1720910808002,0.55,3196.0,3193.9,1.45]
[1720910808220,3.55,3196.0,3193.9,1.45]
[1720910808368,0.90118,3195.9,3193.9,1.45]
[1720910808571,0.55,3195.8,3193.9,1.45]
[1720910809586,9.62570902,3195.7,3193.2,1.45]
[1720910809822,2.4618,3195.6,3193.4,1.45]
[1720910810125,6.0118,3195.6,3193.4,1.45]
[1720910810336,6.0118,3195.6,3193.4,3.245]
[1720910810337,0.3337101,3195.5,3193.4,3.245]
[1720910810481,0.55,3195.4,3193.4,3.245]
[1720910811134,0.3337101,3195.5,3193.8,1.45]
[1720910811993,0.3337101,3195.5,3194.0,1.45]
[1720910812484,0.3337101,3195.5,3193.8,1.45]
[1720910812817,0.3337101,3195.5,3193.6,1.45]
[1720910812818,0.38289659,3195.4,3193.6,1.45]
[1720910813007,0.38289659,3195.4,3193.8,1.45]
[1720910813209,0.38289659,3195.4,3194.0,1.45]
[1720910813388,0.38289659,3195.4,3194.3,1.45]
[1720910813812,0.38289659,3195.4,3194.1,1.45]
[1720910814202,0.38289659,3195.4,3193.7,1.45]
[1720910814724,0.38289659,3195.4,3194.0,1.45]
[1720910814908,0.38289659,3195.4,3193.7,0.295]
[1720910815116,0.55,3195.3,3193.6,1.45]
[1720910815297,0.38289659,3195.4,3193.6,2.95]
[1720910815631,0.38289659,3195.4,3193.9,1.45]
[1720910815793,0.37166067,3195.3,3193.9,1.45]
[1720910815986,0.38289659,3195.4,3194.1,1.45]
[1720910816197,2.4618,3195.6,3194.2,1.45]
[1720910816401,2.4618,3195.6,3194.4,1.45]
[1720910816602,2.4618,3196.3,3195.2,1.45]
[1720910817434,2.4618,3196.3,3195.4,1.45]
[1720910817606,2.4618,3196.3,3195.2,1.45]
[1720910817932,2.4618,3196.3,3195.4,1.45]
[1720910818501,2.4618,3196.3,3194.7,1.5]
[1720910818502,2.4618,3196.3,3195.0,1.45]
[1720910819138,2.4618,3196.3,3194.7,1.5]
[1720910819139,2.4618,3196.3,3194.7,1.45]
[1720910819297,2.4618,3196.3,3194.4,1.45]
[1720910819513,2.4618,3196.3,3194.2,1.45]
[1720910819730,0.82898183,3196.1,3194.0,1.45]
[1720910820056,2.3559,3196.0,3194.0,2.95]
[1720910820202,2.3559,3196.0,3194.3,1.45]
[1720910820399,0.55,3195.9,3194.0,1.45]
[1720910820606,0.29059,3195.8,3194.0,1.45]
[1720910820911,0.29059,3195.8,3194.3,1.45]
[1720910821321,0.29059,3195.8,3193.8,0.63609099]
[1720910821322,0.29059,3195.8,3194.7,1.45]
[1720910821947,0.29059,3195.8,3194.8,0.06259255]
[1720910822107,2.3559,3196.0,3194.8,0.06259255]
[1720910822307,2.3559,3196.0,3194.6,1.5]
[1720910822308,2.3559,3196.0,3194.9,1.45]
[1720910822610,2.3559,3196.0,3194.0,0.64408878]
[1720910822611,2.3559,3196.0,3194.8,1.45]
[1720910822973,0.32801828,3196.2,3195.2,1.45]
[1720910823253,0.32801828,3196.2,3194.4,2.3942]
[1720910823254,0.32801828,3196.2,3195.6,1.45]
[1720910823410,0.32801828,3196.2,3195.7,0.06257534]
[1720910823943,0.32801828,3196.2,3195.6,1.45]
[1720910824311,0.32801828,3196.2,3195.8,1.45]
[1720910824507,0.32801828,3196.2,3195.9,0.06257139]
[1720910824810,0.32801828,3196.2,3195.4,1.45]
[1720910825632,0.32801828,3196.2,3195.4,1.4]
[1720910825837,0.32801828,3196.2,3194.9,2.9]
[1720910826351,2.68391828,3196.2,3194.9,2.9]
[1720910826567,2.68391828,3196.2,3195.3,1.4]
[1720910826729,0.32801828,3196.2,3195.3,1.4]
[1720910826918,0.32801828,3196.2,3195.4,0.06257806]
[1720910827111,0.32801828,3196.2,3195.3,1.4]
[1720910827425,0.32801828,3196.2,3195.1,1.4]
[1720910827949,0.32801828,3196.2,3195.3,1.4]
[1720910828149,0.32801828,3196.2,3195.5,1.4]
[1720910829077,0.32801828,3196.2,3195.7,1.4]
[1720910829234,0.32801828,3196.2,3196.0,1.4]
[1720910830554,0.32801828,3196.2,3195.8,1.4625669]
[1720910830753,0.32801828,3196.2,3196.0,1.4]
[1720910831353,0.32801828,3196.2,3195.8,1.4]
[1720910831682,0.32801828,3196.2,3195.4,1.4]
[1720910832037,0.32801828,3196.2,3195.2,1.4]
[1720910832267,0.26839183,3196.1,3194.4,1.4]
[1720910832426,0.81839183,3196.1,3194.0,1.4]
[1720910832762,2.3559,3196.0,3194.6,1.4]
[1720910833063,0.32801828,3196.2,3195.4,1.4]
[1720910833248,0.32801828,3196.2,3194.3,2.604]
[1720910833249,0.32801828,3196.2,3194.9,1.4]
[1720910833426,0.32801828,3196.2,3194.7,1.4]
[1720910833628,0.32801828,3196.2,3195.1,1.4]
[1720910833938,0.32801828,3196.2,3194.8,1.4]
[1720910834170,2.3559,3196.1,3194.4,1.4]
[1720910834472,0.26839183,3196.0,3194.6,1.4]
[1720910834788,0.26839183,3196.0,3194.6,2.9]
[1720910834928,0.26839183,3196.0,3194.9,1.4]
[1720910835333,2.3559,3196.1,3195.2,1.4]
[1720910835543,0.32801828,3196.2,3195.3,0.06258013]
[1720910835772,0.32801828,3196.2,3195.4,1.4]
[1720910836069,0.32801828,3196.2,3195.5,0.06257856]
[1720910836636,0.32801828,3196.2,3195.4,1.4]
[1720910837166,0.32801828,3196.2,3195.8,1.4]
[1720910837376,0.32801828,3196.2,3196.0,1.4]
[1720910839146,0.32801828,3196.2,3195.8,1.4]
[1720910840064,0.32801828,3196.2,3196.0,1.5]
[1720910841576,0.32801828,3196.2,3196.0,3.19]
[1720910841774,0.32801828,3196.2,3196.0,1.79]
[1720910841981,0.32801828,3196.2,3196.0,1.5]
[1720910842548,0.32801828,3196.2,3196.1,1.4]
[1720910842752,2.3751,3197.4,3196.1,1.4]
[1720910842960,0.32794768,3196.6,3196.1,1.4]
[1720910843397,2.3751,3197.4,3196.1,1.4]
[1720910843696,0.3279428,3196.6,3196.1,1.4]
[1720910844003,0.23751,3197.3,3196.1,1.4]
[1720910844159,0.56544596,3197.3,3196.1,1.4]
[1720910844896,0.56544596,3197.3,3196.0,1.5]
[1720910845973,3.56544596,3197.3,3196.0,1.5]
[1720910846183,0.5940546,3197.2,3196.0,1.5]
[1720910846482,3.56544596,3197.3,3196.0,1.5]
[1720910846810,0.55,3197.2,3196.0,1.5]
[1720910846959,2.3751,3197.1,3196.0,1.5]
[1720910847158,2.533,3196.9,3196.0,1.5]
[1720910847384,3.8033,3196.8,3196.0,1.5]
[1720910850373,2.3751,3196.7,3196.0,1.171875]
[1720910850589,0.55,3196.6,3196.0,1.171875]
[1720910850770,3.55,3196.6,3196.0,1.171875]
[1720910851697,2.94054596,3197.3,3196.0,1.171875]
[1720910851898,0.2940546,3197.2,3196.0,1.171875]
[1720910852102,0.2940546,3197.2,3196.0,2.571875]
[1720910852431,12.00070956,3197.9,3196.0,2.571875]
[1720910852869,0.32794393,3197.3,3196.0,2.571875]
[1720910853062,12.00070956,3197.9,3196.0,2.571875]
[1720910853284,0.32794046,3197.3,3196.0,2.571875]
[1720910853501,9.62560956,3197.9,3196.2,1.4]
[1720910853861,0.32792848,3197.3,3196.2,1.4]
[1720910854090,9.62560956,3197.9,3196.2,1.4]
[1720910854275,0.32792984,3197.3,3196.2,1.4]
[1720910854488,9.62560956,3197.9,3196.1,2.4352]
[1720910854799,0.32793374,3197.3,3196.1,2.4352]
[1720910855101,3.0,3197.8,3196.1,2.4352]
[1720910855400,0.32793033,3197.3,3196.1,2.4352]
[1720910855703,3.0,3197.8,3196.1,2.4352]
[1720910855878,0.87792816,3197.7,3196.1,2.4352]
[1720910856082,0.38779282,3197.6,3196.1,2.4352]
[1720910857198,3.38779282,3197.6,3196.1,2.4352]
[1720910857409,0.55,3197.5,3196.1,2.4352]
[1720910857609,3.38779282,3197.6,3196.1,2.4352]
[1720910859075,3.38779282,3197.6,3196.3,1.4]
[1720910859373,3.38779282,3197.6,3196.3,0.38352]
[1720910859812,3.38779282,3197.6,3196.3,1.78352]
[1720910861370,0.32792816,3197.7,3196.9,1.4]
[1720910861604,0.05734583,3197.5,3196.9,1.4]
[1720910862173,0.05734583,3197.5,3196.5,1.4]
[1720910862685,0.05734583,3197.5,3196.7,1.4]
[1720910862888,0.05734583,3197.5,3196.9,1.4]
[1720910863411,0.05734583,3197.5,3196.4,1.5]
[1720910863412,0.05734583,3197.5,3197.1,1.125]
[1720910863705,0.05734583,3197.5,3197.2,0.06254441]
[1720910864010,0.05734583,3197.5,3197.3,1.47901444]
[1720910864412,0.05734583,3197.5,3197.4,1.125]
[1720910864753,0.05734583,3197.5,3197.1,2.3526]
[1720910864876,0.05734583,3197.5,3196.6,3.658]
[1720910865075,0.05734583,3197.5,3196.6,1.125]
[1720910865271,0.05734583,3197.5,3197.1,1.125]
[1720910866013,0.05734583,3197.5,3197.4,1.125]
[1720910867102,0.05734583,3197.5,3197.4,3.4776]
[1720910867418,0.50224391,3198.0,3197.9,1.125]
[1720910867736,0.50224391,3198.0,3197.9,7.5106]
[1720910868311,0.50224391,3198.0,3197.9,6.0106]
[1720910868523,0.50224391,3198.0,3197.9,7.5106]
[1720910868710,0.50224391,3198.0,3197.9,6.0106]
[1720910868891,0.50224391,3198.0,3197.9,6.76166]
[1720910869099,0.50224391,3198.0,3197.9,8.26166]
[1720910869403,0.0044169,3198.1,3198.0,2.18886]
[1720910869603,0.0044169,3198.1,3198.0,0.314]
[1720910869808,0.0044169,3198.1,3197.9,6.76166]
[1720910870026,0.0044169,3198.1,3197.9,7.5106]
[1720910870517,0.0044169,3198.1,3197.9,6.0106]
[1720910871623,0.0044169,3198.1,3198.0,0.06251984]
[1720910872285,0.0044169,3198.1,3197.9,7.5106]
[1720910873119,0.0044169,3198.1,3197.9,6.0106]
[1720910873304,0.0044169,3198.1,3197.9,8.26166]
[1720910874239,0.0044169,3198.1,3197.8,1.125]
[1720910874735,0.0044169,3198.1,3197.6,1.125]
[1720910876532,0.0044169,3198.1,3197.0,3.658]
[1720910876700,0.0044169,3198.1,3196.8,1.125]
[1720910876701,2.3217169,3198.1,3196.8,1.125]
[1720910876906,2.3217169,3198.1,3196.6,1.125]
[1720910877107,0.23217169,3198.0,3196.6,1.125]
[1720910877448,0.23217169,3198.0,3196.0,3.524475]
[1720910877449,0.23217169,3198.0,3196.3,1.50852]
[1720910877597,3.23217169,3198.0,3196.3,1.50852]
[1720910877932,3.23217169,3198.0,3196.3,1.125]
[1720910878084,3.23217169,3198.0,3196.0,2.296875]
[1720910878288,0.55,3197.9,3196.0,2.296875]
[1720910878491,2.462,3197.8,3196.0,1.171875]
[1720910878725,5.462,3197.8,3196.0,1.171875]
[1720910878902,1.1512,3197.7,3196.0,1.171875]
[1720910879105,4.1512,3197.7,3196.0,1.171875]
[1720910880493,2.533,3197.4,3196.0,1.171875]
[1720910880939,3.55,3197.3,3196.0,1.171875]
[1720910881140,2.462,3197.2,3196.0,1.171875]
[1720910881305,0.4903604,3197.1,3196.0,1.171875]
[1720910881518,0.55,3197.0,3196.0,1.171875]
[1720910881740,2.533,3196.7,3196.0,1.171875]
[1720910882056,0.55,3196.6,3196.0,1.171875]
[1720910882360,3.0,3196.8,3196.0,1.171875]
[1720910882505,3.0792,3196.7,3196.0,1.171875]
[1720910882710,3.0,3196.6,3196.0,1.171875]
[1720910882920,3.0,3196.6,3196.0,0.78735351]
[1720910882921,0.55,3196.5,3196.0,0.78735351]
[1720910883125,2.462,3196.4,3196.0,0.41828154]
[1720910883347,0.55,3196.3,3196.0,0.41828154]
[1720910883516,0.77753209,3196.2,3196.0,0.41828154]
[1720910883716,0.55,3196.1,3196.0,0.41828154]
[1720910884292,0.55,3196.1,3194.3,1.125]
[1720910885564,0.55,3196.1,3193.9,1.125]
[1720910885767,0.55,3196.1,3193.2,1.5]
[1720910885768,2.533,3195.8,3193.5,1.125]
[1720910886000,2.462,3195.6,3193.5,1.125]
[1720910886344,0.55,3195.5,3193.5,1.125]
[1720910886547,3.55,3195.5,3193.5,1.125]
[1720910887255,0.32796471,3195.4,3193.5,1.125]
[1720910887459,0.55,3195.3,3193.5,1.125]
[1720910888355,0.55,3195.3,3193.1,1.125]
[1720910888558,2.533,3194.9,3192.7,1.125]
[1720910888779,2.533,3194.4,3192.5,1.125]
[1720910889000,2.533,3194.4,3191.7,2.3089]
[1720910889001,2.533,3194.4,3191.8,1.125]
[1720910889171,2.462,3193.7,3191.8,1.125]
[1720910889509,2.462,3193.7,3191.7,2.3089]
[1720910889510,5.462,3193.7,3192.4,1.125]
[1720910889819,5.462,3193.7,3191.7,2.3089]
[1720910889820,5.462,3193.7,3192.0,1.125]
[1720910890018,13.72180956,3193.6,3191.5,1.125]
[1720910890166,13.72180956,3193.6,3191.0,2.3089]
[1720910890167,2.533,3193.1,3191.3,1.125]
[1720910890366,2.533,3193.5,3191.5,1.125]
[1720910890573,13.72180956,3193.6,3191.0,2.3089]
[1720910890574,3.0,3193.4,3191.9,1.125]
[1720910890866,13.17180956,3193.6,3191.9,1.125]
[1720910891068,0.52423209,3193.5,3191.5,1.125]
[1720910891541,0.55,3193.4,3191.5,1.125]
[1720910891819,0.52423209,3193.5,3191.9,1.125]
[1720910892017,0.52423209,3193.5,3191.7,1.125]
[1720910892224,0.55,3193.4,3191.7,1.125]
[1720910892532,0.55,3193.4,3191.6,1.125]
[1720910892883,0.52423209,3193.5,3191.6,1.125]
[1720910893116,0.7995,3193.4,3191.6,1.125]
[1720910893318,2.533,3193.2,3191.5,1.125]
[1720910893531,3.0,3193.1,3191.5,1.125]
[1720910893743,3.25960956,3193.6,3192.2,1.125]
[1720910893899,2.462,3193.7,3192.4,1.125]
[1720910894423,2.533,3194.4,3192.7,1.125]
[1720910894588,2.7153,3194.3,3192.7,1.125]
[1720910894791,2.7153,3194.3,3192.9,1.125]
[1720910895260,2.7153,3194.3,3192.3,1.5]
[1720910895261,2.7153,3194.3,3192.7,1.125]
[1720910895402,2.7153,3194.3,3193.0,1.125]
[1720910895729,9.62560956,3194.8,3193.0,1.125]
[1720910896422,2.462,3194.9,3193.3,1.125]
[1720910897205,2.462,3194.9,3193.7,1.125]
[1720910897526,2.462,3194.9,3193.5,1.125]
[1720910897834,0.2462,3194.8,3193.3,1.125]
[1720910898331,3.2462,3194.8,3193.3,1.125]
[1720910898961,3.2462,3194.8,3193.1,2.3089]
[1720910898962,3.2462,3194.8,3193.1,1.125]
[1720910899220,5.7792,3194.8,3193.1,1.125]
[1720910899422,3.2462,3194.8,3193.1,1.125]
[1720910899625,0.57082,3194.7,3192.9,1.125]
[1720910899793,0.55,3194.6,3192.5,3.5071]
[1720910899992,3.55,3194.6,3192.5,3.5071]
[1720910900329,2.533,3194.4,3192.5,3.5071]
[1720910900542,3.8033,3194.3,3192.5,1.125]
[1720910901087,2.3888,3194.2,3192.2,1.125]
[1720910901827,2.533,3194.0,3191.9,3.5071]
[1720910902128,2.533,3194.0,3191.6,1.125]
[1720910902129,13.17560956,3193.9,3191.6,1.125]
[1720910902332,2.3888,3193.8,3191.6,1.125]
[1720910902543,2.533,3193.6,3191.4,1.125]
[1720910902688,2.533,3193.6,3191.2,2.3821]
[1720910902689,3.55,3193.5,3191.3,1.125]
[1720910903343,2.533,3193.2,3191.3,1.125]
[1720910903645,3.8033,3193.1,3191.4,0.06265519]
[1720910903850,3.2533,3193.1,3191.7,1.125]
[1720910904015,3.0,3193.0,3191.9,1.125]
[1720910904210,2.71681896,3193.8,3192.3,1.125]
[1720910904416,3.76213209,3193.7,3192.3,1.125]
[1720910904618,0.76213209,3193.7,3192.3,1.125]
[1720910904846,0.76213209,3193.7,3192.1,1.125]
[1720910905059,0.76213209,3193.7,3191.3,1.5]
[1720910905060,0.76213209,3193.7,3191.8,1.125]
[1720910905363,2.533,3193.6,3191.6,1.125]
[1720910905528,3.43089511,3193.6,3191.6,1.125]
[1720910905727,3.43089511,3193.6,3191.8,1.125]
[1720910906062,3.0,3193.5,3191.9,1.125]
[1720910906227,3.0,3193.5,3191.6,1.125]
[1720910906414,1.13808951,3193.4,3191.6,1.125]
[1720910907054,0.58808951,3193.4,3191.6,1.125]
[1720910907858,0.58808951,3193.4,3191.4,1.125]
[1720910908026,5.4718,3193.3,3191.4,1.125]
[1720910908555,3.0,3193.2,3191.4,1.125]
[1720910908764,3.0,3193.2,3190.8,2.3821]
[1720910908765,2.533,3192.5,3190.8,1.125]
[1720910909126,3.0,3192.4,3190.8,1.125]
[1720910910397,3.0,3192.4,3191.2,1.125]
[1720910910581,3.0,3192.8,3191.4,1.125]
[1720910910760,3.2533,3192.8,3191.4,1.125]
[1720910911187,3.2533,3192.8,3191.2,1.125]
[1720910911401,3.2533,3192.8,3190.8,1.125]
[1720910911570,3.2533,3192.8,3191.1,1.125]
[1720910911756,0.57863,3192.7,3191.1,1.125]
[1720910911962,0.57863,3192.7,3190.9,1.125]
[1720910912496,0.57863,3192.7,3191.1,1.125]
[1720910913088,0.57863,3192.7,3191.6,1.125]
[1720910913272,12.01440956,3193.1,3191.2,3.5071]
[1720910913481,0.55,3193.0,3191.2,2.3821]
[1720910913656,0.55,3193.0,3190.8,1.125]
[1720910913657,2.533,3192.8,3190.8,1.125]
[1720910913857,2.533,3192.8,3190.6,1.125]
[1720910914103,0.55,3192.7,3190.6,1.125]
[1720910914278,2.6971,3192.6,3190.6,1.125]
[1720910914590,2.6971,3192.6,3190.5,2.3821]
[1720910914591,3.55,3192.5,3190.5,2.3821]
[1720910914790,2.533,3192.4,3190.5,2.3821]
[1720910915096,3.0,3192.3,3190.9,1.125]
[1720910915293,0.3,3192.2,3190.6,1.125]
[1720910915592,3.0,3192.5,3190.6,1.125]
[1720910915765,3.0,3192.5,3190.8,1.125]
[1720910915966,3.0,3192.5,3191.1,1.125]
[1720910916183,3.0,3192.5,3190.9,1.125]
[1720910916593,3.0,3192.5,3190.6,1.125]
[1720910916787,3.0,3192.5,3190.6,1.47571]
[1720910916788,0.56971,3192.4,3190.6,1.47571]
[1720910916962,0.55,3192.3,3190.6,1.47571]
[1720910917454,0.55,3192.3,3189.8,0.314]
[1720910917455,0.55,3192.3,3190.3,1.125]
[1720910917663,0.55,3192.3,3190.1,1.125]
[1720910917858,2.533,3192.0,3190.3,1.125]
[1720910918177,3.0,3191.9,3189.8,1.125]
[1720910918354,3.55,3191.9,3190.1,1.125]
[1720910918695,0.44572209,3191.8,3190.1,1.125]
[1720910919257,2.4567,3191.6,3190.1,1.125]
[1720910919462,5.4567,3191.6,3190.1,1.125]
[1720910919772,2.4567,3191.6,3190.5,1.125]
[1720910920111,2.78472351,3192.2,3191.2,1.125]
[1720910920910,2.78472351,3192.2,3190.7,1.125]
[1720910921255,3.0,3192.1,3190.7,1.125]
[1720910923183,3.0,3192.1,3191.0,1.125]
[1720910924415,0.32802351,3192.2,3191.2,1.125]
[1720910924695,0.32802351,3192.2,3191.3,0.0626582]